bitfinex-derivatives/quotes_SOLF0:USTF0_20250113
["timestamp","ask_amount","ask_price","bid_price","bid_amount"]
[1736800429865,2.8065,178.28,178.24,2.8069]
[1736800431059,2.8061,178.3,178.24,6.14]
[1736800431260,2.8061,178.3,178.25,1.7037]
[1736800432063,2.8061,178.3,178.27,2.8064]
[1736800433468,2.8061,178.3,178.25,1.7037]
[1736800433469,21.824321,178.38,178.25,1.7037]
[1736800433763,2.8058,178.32,178.25,1.7037]
[1736800434566,2.8058,178.32,178.28,2.8062]
[1736800435162,2.8068,178.25,178.22,2.8072]
[1736800435364,21.824321,178.32,178.19,3.4137]
[1736800435667,1.595,178.31,178.19,3.4137]
[1736800435862,2.8068,178.26,178.22,2.8072]
[1736800436059,2.8068,178.26,178.19,3.4137]
[1736800436263,2.8066,178.27,178.24,2.8068]
[1736800437664,2.8062,178.29,178.26,2.8067]
[1736800437970,23.419321,178.38,178.24,6.14]
[1736800438170,0.95450394,178.37,178.24,6.14]
[1736800438962,2.8063,178.29,178.24,6.14]
[1736800439164,21.824321,178.35,178.24,6.14]
[1736800439470,2.6272493,178.34,178.24,6.14]
[1736800439678,2.8059,178.31,178.24,6.14]
[1736800439879,1.6725,178.34,178.24,6.14]
[1736800440281,2.8068,178.25,178.24,6.14]
[1736800440480,1.6725,178.34,178.2,2.8076]
[1736800440481,21.824321,178.32,178.2,2.8076]
[1736800440785,2.8077,178.2,178.13,6.14]
[1736800440983,21.824321,178.26,178.18,2.8079]
[1736800441185,21.824321,178.26,178.13,6.14]
[1736800441381,2.8078,178.19,178.13,6.14]
[1736800441581,21.824321,178.26,178.13,6.14]
[1736800441885,2.8083,178.16,178.1,96.32]
[1736800442182,21.824321,178.23,178.1,96.32]
[1736800442481,1.6871,178.22,178.1,96.32]
[1736800442679,21.824321,178.17,178.06,1.7165]
[1736800442877,2.8095,178.08,178.03,1.5847]
[1736800443283,21.824321,178.14,178.03,4.395]
[1736800443482,2.8093,178.1,178.03,1.5847]
[1736800443984,2.8093,178.1,178.05,2.81]
[1736800444483,2.809,178.12,178.06,2.8097]
[1736800444683,6.14,178.18,178.04,21.824321]
[1736800444884,21.824321,178.2,178.04,21.824321]
[1736800445083,2.8086,178.14,178.09,2.8093]
[1736800445286,21.824321,178.2,178.08,6.14]
[1736800445591,1.5564,178.21,178.08,6.14]
[1736800445792,1.5564,178.21,178.09,1.5815]
[1736800446092,1.5564,178.21,178.1,21.824321]
[1736800447086,2.808,178.18,178.13,2.8087]
[1736800447598,3.3801,178.22,178.09,1.5815]
[1736800447890,21.824321,178.2,178.09,1.5815]
[1736800448289,2.8088,178.13,178.09,1.5815]
[1736800449288,21.824321,178.2,178.08,6.14]
[1736800449483,1.6254,178.19,178.08,6.14]
[1736800449689,3.3801,178.22,178.08,6.14]
[1736800449890,3.3801,178.22,178.1,21.824321]
[1736800450283,2.808,178.18,178.13,2.8087]
[1736800450484,2.808,178.18,178.1,21.824321]
[1736800451085,2.8078,178.19,178.1,21.824321]
[1736800451286,3.1922,178.27,178.17,2.808]
[1736800451487,3.1922,178.27,178.16,6.14]
[1736800451794,3.1922,178.27,178.19,2.8076]
[1736800451989,3.1922,178.27,178.16,6.14]
[1736800452292,2.8071,178.24,178.16,6.14]
[1736800452495,23.462321,178.32,178.16,27.964321]
[1736800452688,2.8067,178.26,178.22,2.8072]
[1736800452888,21.824321,178.32,178.16,27.964321]
[1736800453693,21.824321,178.32,178.19,2.8077]
[1736800454394,2.8072,178.23,178.19,2.8077]
[1736800454891,2.8068,178.26,178.22,2.8073]
[1736800456304,21.824321,178.32,178.16,27.964321]
[1736800456504,2.8065,178.27,178.23,2.8071]
[1736800458300,3.3337,178.34,178.23,6.14]
[1736800458497,1.638,178.34,178.24,1.6619]
[1736800459403,21.824321,178.32,178.23,6.14]
[1736800459795,1.5714,178.31,178.23,6.14]
[1736800460294,2.8067,178.26,178.21,2.8074]
[1736800462001,21.824321,178.32,178.19,27.964321]
[1736800462305,1.638,178.34,178.19,27.964321]
[1736800462505,0.95681893,178.33,178.19,27.964321]
[1736800462695,8.81516849,178.34,178.24,2.8069]
[1736800463002,1.638,178.34,178.24,2.8069]
[1736800464106,2.8064,178.28,178.24,2.8069]
[1736800465403,2.8065,178.27,178.24,2.8069]
[1736800466199,1.638,178.34,178.19,27.964321]
[1736800466402,1.638,178.34,178.22,21.824321]
[1736800466608,1.638,178.34,178.23,3.2958]
[1736800466807,2.8061,178.3,178.27,2.8065]
[1736800468109,2.8058,178.32,178.28,2.8062]
[1736800468303,1.5638,178.37,178.26,6.14]
[1736800468503,0.95666438,178.36,178.26,6.14]
[1736800468702,2.8055,178.34,178.3,2.8059]
[1736800468907,2.8055,178.34,178.26,6.14]
[1736800469309,2.8055,178.34,178.28,21.824321]
[1736800469711,2.805,178.37,178.28,21.824321]
[1736800469913,1.6998,178.4,178.28,21.824321]
[1736800470109,65.13073377,178.42,178.31,21.824321]
[1736800470413,2.8046,178.39,178.32,9.4737]
[1736800470810,65.13073377,178.42,178.32,9.4737]
[1736800470811,2.8045,178.41,178.32,9.4737]
[1736800471209,65.13073377,178.42,178.32,9.4737]
[1736800471409,2.8049,178.38,178.33,2.8054]
[1736800472512,2.8049,178.38,178.34,2.8054]
[1736800473316,65.13073377,178.42,178.32,9.4737]
[1736800473616,2.8045,178.4,178.36,2.805]
[1736800475114,2.8047,178.39,178.36,2.805]
[1736800475319,65.13073377,178.42,178.36,2.805]
[1736800475714,65.13073377,178.42,178.38,2.8047]
[1736800476013,65.13073377,178.42,178.34,21.824321]
[1736800476220,65.13073377,178.42,178.39,2.8045]
[1736800476608,65.13073377,178.42,178.34,21.824321]
[1736800476807,2.8043,178.41,178.37,2.8048]
[1736800477118,2.8043,178.41,178.34,21.824321]
[1736800477712,65.13073377,178.42,178.34,21.824321]
[1736800477917,67.93493377,178.42,178.34,21.824321]
[1736800478819,67.93493377,178.42,178.36,2.805]
[1736800479019,67.93493377,178.42,178.34,21.824321]
[1736800481313,65.13073377,178.42,178.34,21.824321]
[1736800481513,308.77471639,178.6,178.37,21.824321]
[1736800481719,0.95589306,178.58,178.4,21.824321]
[1736800481918,2.8026,178.52,178.43,21.824321]
[1736800482222,2.8026,178.52,178.47,2.8032]
[1736800482821,2.8026,178.53,178.48,2.8031]
[1736800483123,2.8026,178.53,178.43,21.824321]
[1736800483319,2.8026,178.53,178.49,2.8029]
[1736800483815,2.8021,178.55,178.48,6.12]
[1736800484013,1.6674,178.58,178.49,13.56767437]
[1736800484420,2.8021,178.55,178.49,13.56767437]
[1736800484813,13.56767437,178.62,178.49,13.56767437]
[1736800485023,0.95540882,178.61,178.52,13.56767437]
[1736800485327,13.56767437,178.63,178.55,2.8021]
[1736800485617,3.2751,178.64,178.55,2.8021]
[1736800485825,0.95521642,178.63,178.5,24.91316236]
[1736800486323,1.5714,178.7,178.56,21.69466236]
[1736800486625,0.95497191,178.69,178.59,21.69466236]
[1736800486816,1.7192,178.71,178.6,7.784]
[1736800487019,1.563,178.73,178.6,7.784]
[1736800487221,1.563,178.73,178.62,21.69466236]
[1736800487423,1.563,178.73,178.65,2.8005]
[1736800487716,1.7192,178.76,178.65,2.8005]
[1736800487922,21.69466236,178.74,178.6,9.439]
[1736800488311,21.69466236,178.71,178.6,6.18]
[1736800488517,2.8001,178.68,178.6,6.18]
[1736800488820,21.69466236,178.68,178.58,96.22]
[1736800489021,21.69466236,178.65,178.58,96.22]
[1736800489221,2.8015,178.6,178.58,96.22]
[1736800490123,21.69466236,178.65,178.58,96.22]
[1736800490321,2.8011,178.62,178.58,96.22]
[1736800490722,2.8015,178.59,178.58,96.22]
[1736800491416,5.0501,178.67,178.51,1.6181]
[1736800491724,21.69466236,178.66,178.51,7.8981]
[1736800491926,21.69466236,178.63,178.51,6.28]
[1736800492118,21.69466236,178.6,178.51,6.28]
[1736800492314,1.5564,178.59,178.51,6.28]
[1736800493119,21.69466236,178.65,178.51,6.28]
[1736800493321,0.95517156,178.64,178.51,6.28]
[1736800493520,21.69466236,178.65,178.51,6.28]
[1736800494324,21.69466236,178.65,178.52,1.6997]
[1736800494528,2.8011,178.62,178.57,2.8017]
[1736800496821,1.6931,178.66,178.53,21.69466236]
[1736800497022,2.8012,178.61,178.56,2.8019]
[1736800497621,2.8012,178.61,178.57,2.8018]
[1736800497822,21.69466236,178.65,178.54,6.26]
[1736800498319,21.69466236,178.65,178.54,9.0622]
[1736800498523,2.8016,178.59,178.54,9.0622]
[1736800499625,2.8016,178.58,178.54,9.0622]
[1736800499828,2.8016,178.58,178.54,6.26]
[1736800500021,21.69466236,178.65,178.54,6.26]
[1736800500218,21.69466236,178.62,178.5,4.67200933]
[1736800500528,21.69466236,178.55,178.44,3.3224]
[1736800500917,2.8026,178.52,178.47,2.8033]
[1736800501117,21.69466236,178.58,178.44,3.3224]
[1736800501522,21.69466236,178.55,178.44,3.3224]
[1736800502028,2.803,178.5,178.45,2.8037]
[1736800502423,2.8021,178.55,178.5,2.8028]
[1736800502624,1.5767,178.57,178.5,6.3]
[1736800502828,21.69466236,178.65,178.5,6.3]
[1736800503031,1.7187,178.64,178.53,2.8024]
[1736800503327,2.67403071,178.64,178.53,2.8024]
[1736800503530,2.8017,178.58,178.53,2.8024]
[1736800503730,1.7187,178.64,178.53,2.8024]
[1736800504425,2.8018,178.58,178.53,2.8024]
[1736800505025,2.8023,178.54,178.5,9.1028]
[1736800505221,21.69466236,178.59,178.45,6.28]
[1736800505431,21.69466236,178.56,178.45,6.28]
[1736800505626,2.8029,178.51,178.46,2.8035]
[1736800505928,38.56466236,178.65,178.46,2.8035]
[1736800505929,21.69466236,178.62,178.46,21.69466236]
[1736800506133,2.8016,178.59,178.52,2.8025]
[1736800506328,21.69466236,178.62,178.49,21.69466236]
[1736800506629,2.8024,178.54,178.5,2.8029]
[1736800506835,2.8024,178.54,178.46,21.69466236]
[1736800507133,3.3535,178.64,178.49,2.8029]
[1736800507134,2.8025,178.53,178.49,2.8029]
[1736800507326,21.69466236,178.59,178.44,9.6024]
[1736800507527,21.69466236,178.56,178.44,9.6024]
[1736800507732,2.8028,178.51,178.44,9.6024]
[1736800508229,2.8026,178.53,178.49,2.803]
[1736800508533,3.2713,178.55,178.44,9.6024]
[1736800508835,2.8027,178.52,178.47,2.8032]
[1736800509024,1.6384,178.55,178.44,9.6024]
[1736800509224,1.6619,178.58,178.46,21.69466236]
[1736800509431,1.6619,178.58,178.49,2.803]
[1736800509632,3.2593,178.58,178.46,21.69466236]
[1736800509834,2.8022,178.55,178.49,2.8029]
[1736800510029,3.2593,178.58,178.46,21.69466236]
[1736800510226,1.5974,178.58,178.46,21.69466236]
[1736800510427,2.8018,178.57,178.47,1.6145]
[1736800510926,2.802,178.56,178.52,2.8025]
[1736800511331,1.5974,178.58,178.47,1.6145]
[1736800511530,2.8017,178.58,178.54,2.8022]
[1736800512834,1.6329,178.61,178.51,6.32]
[1736800513134,2.8019,178.57,178.53,2.8024]
[1736800514031,2.8015,178.59,178.55,2.802]
[1736800514832,2.8015,178.59,178.56,2.8019]
[1736800515035,2.8015,178.59,178.51,6.32]
[1736800515537,2.8015,178.59,178.55,2.802]
[1736800518734,2.8015,178.59,178.51,6.32]
[1736800519037,2.8015,178.59,178.56,2.8019]
[1736800519744,2.8014,178.6,178.56,2.8019]
[1736800520039,23.30176236,178.65,178.56,2.8019]
[1736800520939,2.8014,178.6,178.56,2.8019]
[1736800521342,23.30176236,178.65,178.51,6.32]
[1736800521534,2.8012,178.61,178.51,6.32]
[1736800521734,2.8012,178.61,178.52,3.1817]
[1736800521939,2.8009,178.63,178.6,2.8013]
[1736800522738,2.8007,178.64,178.61,2.8011]
[1736800523438,383.98419774,178.76,178.62,2.801]
[1736800523439,25.01206236,178.71,178.62,2.801]
[1736800523630,0.95484402,178.7,178.62,2.801]
[1736800523830,1.7215,178.71,178.58,27.95466236]
[1736800524030,2.7996,178.72,178.61,21.69466236]
[1736800524230,2.7996,178.72,178.62,3.137]
[1736800524833,2.7991,178.74,178.62,3.137]
[1736800525034,3.3174,178.76,178.62,3.137]
[1736800525035,7.1752895,178.75,178.62,3.137]
[1736800525442,2.7994,178.73,178.62,3.137]
[1736800526638,2.7991,178.75,178.64,21.69466236]
[1736800526838,2.7991,178.75,178.65,7.8902]
[1736800527240,2.7991,178.75,178.71,2.7995]
[1736800527639,1.6232,178.81,178.67,21.69466236]
[1736800527847,1.6232,178.81,178.7,21.69466236]
[1736800528146,2.7983,178.8,178.71,3.2652]
[1736800528338,2.7983,178.8,178.72,6.26]
[1736800528834,3.2005,178.82,178.74,2.7991]
[1736800529037,2.7985,178.79,178.72,6.26]
[1736800529232,3.2005,178.82,178.72,6.26]
[1736800529439,3.2005,178.82,178.65,23.32486236]
[1736800529645,21.69466236,178.78,178.66,6.26]
[1736800529844,21.69466236,178.75,178.66,6.26]
[1736800530047,21.69466236,178.75,178.66,9.0603]
[1736800530241,21.69466236,178.75,178.66,6.26]
[1736800530747,21.69466236,178.75,178.67,2.8002]
[1736800531050,21.69466236,178.75,178.63,1.6945]
[1736800531346,2.8004,178.66,178.62,96.12]
[1736800532142,21.69466236,178.72,178.62,96.12]
[1736800532651,21.69466236,178.72,178.62,98.9209]
[1736800532838,2.8004,178.66,178.62,98.9209]
[1736800533040,21.69466236,178.72,178.62,96.12]
[1736800533242,2.8002,178.67,178.63,2.8008]
[1736800533745,21.69466236,178.72,178.62,96.12]
[1736800533746,2.8006,178.65,178.62,96.12]
[1736800533948,21.69466236,178.72,178.62,96.12]
[1736800534747,2.8005,178.66,178.62,98.921]
[1736800535550,2.8001,178.68,178.64,2.8007]
[1736800535750,21.69466236,178.72,178.64,2.8007]
[1736800535952,3.3284,178.74,178.62,96.12]
[1736800536654,2.7996,178.71,178.65,2.8004]
[1736800536959,2.7996,178.71,178.62,117.81466236]
[1736800537145,3.3284,178.74,178.62,117.81466236]
[1736800537957,2.7998,178.7,178.66,2.8003]
[1736800538461,2.7996,178.71,178.67,2.8001]
[1736800538849,1.6218,178.77,178.62,117.81466236]
[1736800539052,3.4037,178.82,178.68,21.69466236]
[1736800539257,3.4037,178.82,178.69,11.2305]
[1736800539551,1.7159,178.82,178.78,2.7985]
[1736800539759,1.666,178.85,178.78,2.7985]
[1736800540151,2.7977,178.83,178.78,2.7985]
[1736800540949,2.7979,178.82,178.78,2.7985]
[1736800542553,1.666,178.85,178.71,21.69466236]
[1736800543150,2.7981,178.81,178.75,2.7989]
[1736800543360,2.7981,178.81,178.71,21.69466236]
[1736800543962,2.7981,178.81,178.76,2.7987]
[1736800545157,1.666,178.85,178.76,2.7987]
[1736800545359,2.7982,178.8,178.76,2.7987]
[1736800546163,2.7982,178.8,178.77,2.7986]
[1736800546564,1.666,178.85,178.77,2.7986]
[1736800547158,2.7981,178.81,178.77,2.7986]
[1736800547363,1.666,178.85,178.77,2.7986]
[1736800548163,21.69466236,178.84,178.69,11.2305]
[1736800548375,21.69466236,178.84,178.69,4.9705]
[1736800548570,21.69466236,178.81,178.69,4.9705]
[1736800548770,2.7991,178.75,178.71,2.7995]
[1736800549169,1.5731,178.8,178.69,4.9705]
[1736800549170,2.7993,178.73,178.69,4.9705]
[1736800549370,21.69466236,178.78,178.68,0.20418]
[1736800550366,21.69466236,178.75,178.68,0.20418]
[1736800551465,0.9544767,178.74,178.68,0.20418]
[1736800551666,2.7999,178.69,178.68,0.20418]
[1736800551868,1.6489,178.77,178.68,0.20418]
[1736800552266,2.7996,178.71,178.68,0.20418]
[1736800552874,1.6489,178.77,178.68,0.20418]
[1736800553069,2.7994,178.73,178.68,0.20418]
[1736800553369,21.69466236,178.78,178.68,0.20418]
[1736800553576,2.7988,178.77,178.73,2.7993]
[1736800553774,1.7234,178.79,178.68,1.92158]
[1736800554074,2.798,178.81,178.77,2.7986]
[1736800554372,3.1461,178.86,178.71,21.69466236]
[1736800554568,21.69466236,178.84,178.72,3.3105]
[1736800554769,2.7985,178.78,178.72,3.3105]
[1736800555370,2.7985,178.78,178.73,2.7992]
[1736800555569,2.7984,178.79,178.72,3.3105]
[1736800555873,3.1461,178.86,178.74,6.22]
[1736800556071,3.1461,178.86,178.72,3.3105]
[1736800556269,21.69466236,178.81,178.72,3.3105]
[1736800556671,2.7988,178.77,178.73,2.7992]
[1736800556876,21.69466236,178.84,178.72,3.3105]
[1736800557173,2.7982,178.81,178.76,2.7988]
[1736800557565,3.1461,178.86,178.76,2.7988]
[1736800559177,2.7982,178.8,178.76,2.7988]
[1736800560982,2.7982,178.8,178.77,2.7986]
[1736800561380,2.7976,178.84,178.75,27.93466236]
[1736800561578,2.7976,178.84,178.8,2.7981]
[1736800562178,21.69466236,178.9,178.76,1.7066]
[1736800562482,1.6102,178.91,178.82,2.7977]
[1736800563382,2.7974,178.86,178.82,2.7977]
[1736800563582,21.69466236,178.93,178.83,2.7976]
[1736800563784,2.7971,178.88,178.82,6.22]
[1736800564078,21.69466236,178.93,178.82,6.22]
[1736800564384,2.7974,178.86,178.82,6.22]
[1736800565481,21.69466236,178.93,178.82,6.22]
[1736800565783,2.7974,178.85,178.82,9.0178]
[1736800566083,21.69466236,178.84,178.72,45.37574175]
[1736800566554,21.69466236,178.81,178.69,1.6412]
[1736800566707,2.7986,178.78,178.69,4.4411]
[1736800566846,21.69466236,178.81,178.69,1.6412]
[1736800567285,21.69466236,178.78,178.68,0.20418]
[1736800567983,21.69466236,178.78,178.68,3.00418]
[1736800568183,21.69466236,178.78,178.68,0.20418]
[1736800568385,21.69466236,178.81,178.68,0.20418]
[1736800568679,1.6367,178.83,178.69,21.69466236]
[1736800568881,2.7985,178.78,178.73,2.7992]
[1736800569082,2.7985,178.78,178.69,21.69466236]
[1736800569481,2.7985,178.78,178.72,2.7993]
[1736800570680,8.80419218,178.83,178.69,21.69466236]
[1736800570890,2.7983,178.8,178.75,2.7989]
[1736800571489,7.16749218,178.83,178.75,21.69466236]
[1736800571687,177.72542055,178.91,178.76,4.9211]
[1736800571881,0.95390727,178.9,178.76,4.9211]
[1736800572083,177.72542055,178.91,178.76,4.9211]
[1736800572084,0.95373467,178.89,178.76,4.9211]
[1736800572276,0.95373467,178.88,178.76,4.9211]
[1736800572484,2.7973,178.86,178.76,4.9211]
[1736800572886,7.17068171,178.9,178.78,21.69466236]
[1736800573088,2.7971,178.88,178.83,2.7976]
[1736800573284,21.69466236,178.91,178.83,2.7976]
[1736800573587,0.95361956,178.9,178.81,6.18]
[1736800574089,21.69466236,178.88,178.76,4.9211]
[1736800574389,2.7984,178.79,178.76,9.4075]
[1736800574789,2.7984,178.79,178.76,6.18]
[1736800575491,3.1955,178.93,178.77,21.69466236]
[1736800575691,22.64832644,178.92,178.77,23.32146236]
[1736800575884,2.7981,178.81,178.77,1.6268]
[1736800576086,21.69466236,178.86,178.76,6.18]
[1736800576384,1.6251,178.85,178.76,6.18]
[1736800576588,2.7982,178.81,178.76,6.18]
[1736800576983,1.6251,178.85,178.76,6.18]
[1736800577186,2.7985,178.79,178.76,6.18]
[1736800577887,2.7981,178.81,178.76,6.18]
[1736800578090,21.69466236,178.89,178.76,6.18]
[1736800578290,8.12918456,178.88,178.78,2.7984]
[1736800578488,2.7975,178.85,178.78,2.7984]
[1736800578688,7.17536636,178.88,178.76,6.18]
[1736800578889,0.95381793,178.87,178.79,2.7983]
[1736800579082,0.95381793,178.87,178.76,6.18]
[1736800579288,21.69466236,178.86,178.74,2.7991]
[1736800579489,21.69466236,178.83,178.74,2.7991]
[1736800579789,2.7981,178.81,178.74,2.7991]
[1736800579990,21.69466236,178.83,178.74,2.7991]
[1736800580389,2.7985,178.79,178.71,7.8068]
[1736800580587,21.69466236,178.83,178.71,7.8068]
[1736800580783,21.69466236,178.83,178.71,1.6268]
[1736800580988,21.69466236,178.83,178.71,4.4263]
[1736800581185,1.6049,178.82,178.71,4.4263]
[1736800581386,21.69466236,178.8,178.68,0.20418]
[1736800581590,21.69466236,178.77,178.68,0.20418]
[1736800581787,1.6779,178.79,178.68,0.20418]
[1736800581991,0.95420876,178.78,178.68,21.89884236]
[1736800582294,1.6049,178.82,178.71,21.69466236]
[1736800582495,8.79420871,178.82,178.72,11.0972]
[1736800582691,2.7982,178.8,178.75,2.799]
[1736800582893,7.18930871,178.85,178.72,11.0972]
[1736800584197,7.18930871,178.85,178.74,21.69466236]
[1736800584493,3.2399,178.87,178.74,21.69466236]
[1736800584695,2.7976,178.84,178.8,2.7982]
[1736800585189,7.19181789,178.88,178.79,6.16]
[1736800585390,2.7971,178.87,178.82,2.7977]
[1736800585591,7.19181789,178.88,178.82,2.7977]
[1736800585897,7.19181789,178.91,178.82,2.7977]
[1736800586096,0.95361177,178.9,178.79,6.16]
[1736800586294,0.95361177,178.9,178.8,1.574]
[1736800586794,2.7973,178.86,178.81,2.798]
[1736800587094,2.7973,178.86,178.73,96.02]
[1736800587095,21.69466236,178.86,178.77,6.16]
[1736800587286,2.7984,178.79,178.77,6.16]
[1736800588691,7.19136573,178.85,178.77,6.16]
[1736800588896,7.19136573,178.85,178.77,27.85466236]
[1736800589093,2.7971,178.87,178.77,27.85466236]
[1736800589303,7.19136573,178.88,178.8,21.69466236]
[1736800589495,7.19136573,178.91,178.81,4.8958]
[1736800589891,3.1918,178.92,178.81,4.8958]
[1736800590093,1.5668,178.92,178.81,4.8958]
[1736800590291,21.69466236,178.95,178.81,4.8958]
[1736800590492,8.14086087,178.94,178.81,4.8958]
[1736800590689,7.18750284,178.94,178.81,4.8958]
[1736800590894,2.7965,178.91,178.81,4.8958]
[1736800591492,2.7965,178.91,178.86,2.7971]
[1736800591790,21.69466236,178.92,178.81,11.0358]
[1736800591991,21.69466236,178.92,178.81,1.6352]
[1736800592191,21.69466236,178.89,178.77,6.16]
[1736800592387,4.8238,178.88,178.77,6.16]
[1736800592794,0.95375293,178.87,178.77,6.16]
[1736800592991,21.69466236,178.86,178.77,6.16]
[1736800593801,21.69466236,178.86,178.77,8.9585]
[1736800593995,2.7979,178.82,178.77,8.9585]
[1736800594200,4.8238,178.88,178.77,6.16]
[1736800594496,12.00891764,178.88,178.77,6.16]
[1736800594700,21.69466236,178.85,178.77,6.16]
[1736800595598,26.51846236,178.88,178.77,6.16]
[1736800595799,0.95368995,178.87,178.77,6.16]
[1736800595999,21.69466236,178.85,178.77,6.16]
[1736800596199,21.69466236,178.85,178.74,0.21634]
[1736800596693,2.7981,178.81,178.74,0.21634]
[1736800596896,26.51846236,178.88,178.74,3.47284]
[1736800597099,0.95374752,178.87,178.74,3.47284]
[1736800597399,2.7976,178.84,178.8,2.798]
[1736800597599,4.8238,178.88,178.76,21.69466236]
[1736800597803,3.1919,178.88,178.77,1.5982]
[1736800598099,2.7971,178.87,178.77,1.5982]
[1736800598403,7.1944555,178.91,178.79,21.69466236]
[1736800598592,9.9909555,178.91,178.88,2.7969]
[1736800598795,7.1944555,178.91,178.82,21.69466236]
[1736800598992,7.1944555,178.91,178.85,21.69466236]
[1736800599195,2.7962,178.93,178.89,2.7967]
[1736800599400,7.1944555,178.97,178.88,6.14]
[1736800599801,2.796,178.94,178.88,6.14]
[1736800600095,7.1944555,178.97,178.88,6.14]
[1736800600396,7.1944555,178.97,178.88,27.83466236]
[1736800600799,7.1944555,178.97,178.94,2.796]
[1736800601004,2.7954,178.98,178.94,2.796]
[1736800601498,2.7957,178.96,178.91,2.7965]
[1736800602898,21.69466236,179.01,178.9,6.14]
[1736800603302,0.95293652,179.0,178.9,6.14]
[1736800603704,21.69466236,179.01,178.9,6.14]
[1736800604399,21.69466236,179.01,178.9,8.9366]
[1736800604703,21.69466236,179.01,178.9,6.14]
[1736800605203,2.7954,178.98,178.93,2.796]
[1736800605395,2.7954,178.98,178.9,6.14]
[1736800605795,1.611,179.03,178.9,6.14]
[1736800606100,2.7952,178.99,178.9,6.14]
[1736800606299,2.7952,178.99,178.94,2.7959]
[1736800606603,1.611,179.03,178.91,3.3219]
[1736800607000,2.7952,179.0,178.95,2.7957]
[1736800607302,1.611,179.03,178.91,3.3219]
[1736800608102,21.69466236,179.01,178.91,3.3219]
[1736800608302,21.69466236,179.01,178.91,1.6557]
[1736800608502,2.7954,178.98,178.93,2.7961]
[1736800608699,21.69466236,179.01,178.93,2.7961]
[1736800609099,1.611,179.03,178.93,2.7961]
[1736800609503,21.69466236,179.04,178.91,1.6557]
[1736800609797,0.9528237,179.03,178.91,23.35036236]
[1736800610000,2.7954,178.99,178.94,2.796]
[1736800610395,21.69466236,179.04,178.91,1.6557]
[1736800610803,1.6916,179.09,178.91,1.6557]
[1736800610804,21.69466236,179.07,178.91,23.35036236]
[1736800611196,2.7946,179.04,178.99,2.7951]
[1736800611400,21.69466236,179.07,178.99,2.7951]
[1736800611802,2.7946,179.03,178.99,2.7951]
[1736800612010,21.69466236,179.07,178.91,23.35036236]
[1736800612202,1.6916,179.09,179.0,2.795]
[1736800613000,1.6916,179.09,178.97,27.83466236]
[1736800613408,4.79569104,179.12,178.97,27.83466236]
[1736800614104,2.794,179.07,178.97,27.83466236]
[1736800614809,2.794,179.07,179.03,2.7945]
[1736800616009,2.794,179.07,179.04,2.7944]
[1736800616201,4.79569104,179.12,179.04,2.7944]
[1736800616505,4.79569104,179.12,178.97,27.83466236]
[1736800616703,4.79569104,179.12,179.05,2.7941]
[1736800617407,4.79569104,179.12,179.06,2.794]
[1736800617606,2.7937,179.09,178.97,27.83466236]
[1736800619308,2.7937,179.09,179.0,21.69466236]
[1736800619510,2.7937,179.09,179.01,1.5847]
[1736800619709,21.69466236,179.13,179.01,1.5847]
[1736800619710,2.7935,179.11,179.01,1.5847]
[1736800620308,21.69466236,179.13,178.95,3.1605]
[1736800620309,21.69466236,179.1,178.95,3.1605]
[1736800620611,21.69466236,179.04,178.95,3.1605]
[1736800620809,2.7952,179.0,178.95,3.1605]
[1736800621308,21.69466236,179.04,178.95,1.5892]
[1736800621509,21.69466236,179.04,178.93,7.7047]
[1736800621911,21.69466236,179.04,178.96,2.7956]
[1736800622307,21.69466236,179.04,178.93,7.7047]